[Event "European Women-ch 2023"]
[Site "Petrovac"]
[Date "2023.03.19"]
[Round "2.11"]
[White "Maltsevskaya, Aleksandra"]
[Black "Sliwicka, Alicja"]
[Result "1-0"]
[ECO "A33"]
[WhiteElo "2388"]
[BlackElo "2272"]
[Annotator "TA"]
[PlyCount "81"]
[EventDate "2023.03.15"]
[EventType "swiss"]
[EventCountry "MNE"]
[SourceTitle "playchess.com"]
[Source "ChessBase"]
[SourceQuality "1"]
[TimeControl "40/5400+30:1800+30"]

{[%evp 20,81,-2,-14,27,0,21,18,16,11,14,13,80,74,76,72,141,131,128,72,71,88,79,84,87,0,23,14,29,17,18,14,13,20,18,28,38,41,535,528,506,534,504,525,510,510,835,813,880,877,851,857,896,877,1158,1121,879,463,1397,1014,995,979,4933,4929]} 1. Nf3 {[%emt 0:00:05]} c5 {[%emt 0:00:06]} 2. c4 {[%emt 0:00:14]} Nc6 {[%emt 0:02:32]} 3. Nc3 {[%emt 0:00:10]} e6 {[%emt 0:06:44]} 4. d4 {[%emt 0:04:15]} cxd4 {[%emt 0:02:23]} 5. Nxd4 {[%emt 0:00:06]} Qb6 {[%emt 0:10:06]} 6. Nb3 {[%emt 0:03:34]} Nf6 {[%emt 0:04:57]} 7. g3 {[%emt 0:00:48]} Ne5 {[%emt 0:03:48]} 8. e4 {[%emt 0:19:53]} Bb4 {[%emt 0:03:56]} 9. Qe2 {[%emt 0:00:19]} d6 {[%emt 0:23:43]} 10. f4 {[%emt 0:01:35] 10.f4 has become a bit dusty these days.} Nc6 {[%emt 0:00:46]} 11. Be3 {[%emt 0:01:26][%cal Bc1e3,Be3d2,Bd2c3][%mdl 32]} Qc7 {[%emt 0:01:02] A33: Symmetrical English: 2 Nf3 Nf6 3 d4 cxd4 4 Nxd4 e6 5 Nc3 Nc6.} 12. Bd2 {[%emt 0:03:45] Threatens to win with Nb5.} O-O {[%emt 0:05:08]} 13. Bg2 {[%emt 0:02:52] [#]} Bxc3 $146 {[%emt 0:04:12] The position is equal.} ({Predecessor:} 13... a5 14. O-O Bxc3 15. Bxc3 e5 16. Kh1 b6 17. Nd2 a4 18. b4 axb3 19. axb3 {½-½ Drasko,M (2505)-Ivanovic,B (2530) YUG-ch Yugoslavia 1989}) 14. Bxc3 {[%emt 0:00:07]} e5 $1 {[%emt 0:00:49]} 15. O-O {[%emt 0:01:51]} Be6 {[%emt 0:03:45]} (15... a5 $11 {remains equal.}) 16. f5 $16 {[%emt 0:02:17]} Bd7 {[%emt 0:00:17]} 17. g4 {[%emt 0:01:17][%cal Bg3g4,Bg4g5][%mdl 32]} Rfc8 {[%emt 0:05:52]} (17... h6 $142) 18. g5 {[%emt 0:02:57]} Ne8 {[%emt 0:00:07]} 19. Rf3 {[%emt 0:05:23]} ({White should play} 19. Qh5) 19... f6 {[%emt 0:01:45]} 20. h4 {[%emt 0:02:11]} Ne7 {[%emt 0:00:44]} 21. Nd2 {[%emt 0:07:44]} b5 {[%emt 0:00:48] [#] Strongly threatening ...b4.} 22. Kh2 {[%emt 0:00:51] Active counter play!} (22. Kh1 $16) 22... bxc4 {[%emt 0:02:59]} 23. Rg3 {[%emt 0:00:06] Qh5 is the strong threat.} d5 $1 {[%emt 0:05:35]} 24. Qh5 {[%emt 0:03:59] Black must now prevent gxf6.} Qd6 {[%emt 0:03:37]} 25. gxf6 {[%emt 0:04:54]} (25. g6 $2 h6 26. b3 cxb3 27. axb3 Qb6 $19) 25... Qxf6 {[%emt 0:00:56]} 26. exd5 {[%emt 0:00:34]} Nxf5 {[%emt 0:02:57]} 27. Rg5 $36 {[%emt 0:02:14][%mdl 2048] Hoping for Ne4. Black is under pressure.} Ned6 {[%emt 0:01:06]} 28. Ne4 {[%emt 0:00:10][%cal Bd2e4,Be4f6,Bf6d7,Bd7e5][%mdl 32] Some like it hot} Qf7 {[%emt 0:02:29][%mdl 8192] Loses the game.} (28... Nxe4 $14 29. Bxe4 g6) 29. Qxf7+ $18 {[%emt 0:00:26][%mdl 64] [#] Remove Defender. White is clearly winning.} (29. Bxe5 Nxe4 30. Qxf7+ (30. Bxe4 Qxh5 31. Rxh5 Rf8 $16) 30... Kxf7 $16) 29... Nxf7 {[%emt 0:00:06]} 30. Nf6+ {[%emt 0:00:21]} Kh8 {[%emt 0:00:11]} 31. Nxd7 {[%emt 0:00:06]} Nxg5 {[%emt 0:00:06]} 32. hxg5 {[%emt 0:00:06]} Ne3 {[%emt 0:01:28]} (32... e4 $142 33. Bxe4 Nd6) 33. Nxe5 {[%emt 0:00:36]} Rf8 {[%emt 0:00:45]} 34. Re1 {[%emt 0:01:09]} Nxg2 {[%emt 0:00:43]} 35. Kxg2 {[%emt 0:00:06]} Rf5 {[%emt 0:00:37]} 36. d6 {[%emt 0:00:49][%cal Bd5d6,Bd6d7][%mdl 32]} ({Weaker is} 36. Nxc4 Rxg5+ 37. Kh3 Rxd5 $16) 36... Raf8 {[%emt 0:00:31]} 37. d7 {[%emt 0:01:52] And now Bb4 would win.} Kg8 {[%emt 0:00:20]} 38. Bb4 {[%emt 0:03:02]} Rxg5+ {[%emt 0:00:06]} (38... Rd8 $142 39. Kh3 (39. Nxc4 Rxg5+ 40. Kf3 Rxd7 $14) 39... Rxe5) 39. Kh3 {[%emt 0:00:04]} Rd8 {[%emt 0:01:02]} 40. Nf3 {[%emt 0:00:00]} ({Not} 40. Nxc4 Rxd7 41. Re8+ Kf7 $14) 40... Rxd7 {[%emt 0:00:00]} 41. Nxg5 {[%emt 0:00:19] Weighted Error Value: White=0.43/Black=0.34} 1-0

[Event "European Women-ch 2023"]
[Site "Petrovac"]
[Date "2023.03.19"]
[Round "2.11"]
[White "Zhukova, Natalia"]
[Black "Makropoulou, Marina"]
[Result "1/2-1/2"]
[ECO "A28"]
[WhiteElo "2322"]
[BlackElo "2102"]
[Annotator "TA"]
[PlyCount "52"]
[EventDate "2023.03.15"]
[EventType "swiss"]
[EventCountry "MNE"]
[SourceTitle "playchess.com"]
[Source "ChessBase"]
[SourceQuality "1"]
[TimeControl "40/5400+30:1800+30"]

{[%evp 9,52,11,6,0,9,14,8,1,13,0,0,0,8,0,0,0,0,13,-2,-11,0,-37,-41,-51,-36,-54,12,0,5,12,13,10,23,6,0,10,23,18,42,14,52,13,19,12,10]} 1. c4 {[%emt 0:00:04]} e5 {[%emt 0:00:30]} 2. Nc3 {[%emt 0:00:14]} Nc6 {[%emt 0:02:16]} 3. Nf3 {[%emt 0:00:16]} Nf6 {[%emt 0:00:28]} 4. e4 {[%emt 0:00:30]} Bb4 {[%emt 0:00:31]} 5. d3 {[%emt 0:00:16]} d6 {[%emt 0:00:44]} 6. a3 {[%emt 0:00:53] A28: English Opening: Four Knights Variation.} Bc5 $1 {[%emt 0:00:39][%cal Bb4c5,Bc5b6,Bb6d4][%mdl 32] 6...Bc5 is better than 6...Bxc3+.} 7. b4 {[%emt 0:02:06]} Bb6 {[%emt 0:00:13]} 8. Be2 {[%emt 0:10:57]} O-O {[%emt 0:18:22]} 9. Na4 {[%emt 0:10:38]} Bd4 {[%emt 0:00:51]} 10. Rb1 {[%emt 0:01:22]} a6 {[%emt 0:11:25] [#]} 11. b5 $146 {[%emt 0:29:52]} ({Predecessor:} 11. O-O Ba7 12. Be3 Bg4 13. Nc3 Bxf3 14. Bxf3 Nd4 15. g3 c6 16. Bg2 b5 17. Ne2 {½-½ Gelfand,B (2686)-Matlakov,M (2716) FIDE World Cup 2019 (2.2)}) 11... axb5 {[%emt 0:10:39]} 12. cxb5 {[%emt 0:00:08]} Ne7 {[%emt 0:12:45]} 13. Nxd4 {[%emt 0:00:14]} exd4 {[%emt 0:00:12]} 14. O-O {[%emt 0:00:08]} Bd7 {[%emt 0:03:15]} 15. Rb4 {[%emt 0:07:06]} Ra5 {[%emt 0:03:57]} 16. Rxd4 {[%emt 0:06:09]} Bxb5 {[%emt 0:01:46] [#] ...Nc6 would be deadly.} 17. Nc3 $1 {[%emt 0:07:18]} Ba6 {[%emt 0:05:11]} ({Better is} 17... c5 $1 $15 18. Nxb5 cxd4 19. Nxd4 Nc6) 18. Ra4 $11 {[%emt 0:04:26]} Rxa4 {[%emt 0:01:57]} 19. Qxa4 {[%emt 0:00:19]} Qd7 {[%emt 0:02:32]} 20. Qd1 {[%emt 0:04:28]} Nc6 {[%emt 0:03:05]} 21. Re1 {[%emt 0:06:39]} Nd4 {[%emt 0:04:49]} 22. Bf1 {[%emt 0:00:02]} Qc6 {[%emt 0:00:27]} 23. Bb2 {[%emt 0:00:25]} Qc5 {[%emt 0:07:07]} 24. Qd2 {[%emt 0:02:50]} h6 {[%emt 0:03:51]} (24... Nb3 $5 {[%cal Rb3d2]} 25. Qd1 Nd4 $11) 25. h3 {[%emt 0:03:00]} Qg5 {[%emt 0:02:47]} 26. Qxg5 {[%emt 0:01:56]} hxg5 {[%emt 0:00:01] Weighted Error Value: White=0.07 (flawless) /Black=0.12 (very precise)} 1/2-1/2

[Event "European Women-ch 2023"]
[Site "Petrovac"]
[Date "2023.03.19"]
[Round "2.11"]
[White "Ivekovic, Tihana"]
[Black "Manova, Ivana"]
[Result "1/2-1/2"]
[ECO "D26"]
[WhiteElo "2132"]
[BlackElo "1923"]
[Annotator "TA"]
[PlyCount "82"]
[EventDate "2023.03.15"]
[EventType "swiss"]
[EventCountry "MNE"]
[SourceTitle "playchess.com"]
[Source "ChessBase"]
[SourceQuality "1"]
[TimeControl "40/5400+30:1800+30"]

{[%evp 12,82,32,27,19,23,23,20,25,17,12,14,10,8,38,29,45,29,48,29,31,37,54,47,54,48,52,50,50,52,42,11,17,12,78,6,21,13,37,8,18,0,0,0,0,0,0,0,0,0,33,39,129,125,91,0,0,0,0,0,0,0,0,0,0,0,0,0,0,0,0,0,0]} 1. d4 {[%emt 0:00:01]} d5 {[%emt 0:00:37]} 2. c4 {[%emt 0:00:05]} dxc4 {[%emt 0:00:10]} 3. Nf3 {[%emt 0:00:05]} Nf6 {[%emt 0:00:04]} 4. e3 {[%emt 0:00:04]} e6 {[%emt 0:00:20]} 5. Bxc4 {[%emt 0:00:07]} a6 {[%emt 0:00:10]} 6. O-O {[%emt 0:00:08]} b5 {[%emt 0:00:12]} 7. Be2 $1 {[%emt 0:00:06][%mdl 4] now scores much better than the old 7.Bd3.} Bb7 {[%emt 0:02:08] D26: Queen's Gambit Accepted: 4 e3 e6 5 Bxc5 c5 sidelines.} 8. a4 {[%emt 0:00:05]} b4 {[%emt 0:01:15]} 9. b3 {[%emt 0:00:17]} Nbd7 {[%emt 0:03:51]} 10. Bb2 {[%emt 0:00:10]} Be7 {[%emt 0:03:01]} 11. Nbd2 {[%emt 0:00:07]} O-O {[%emt 0:04:34]} 12. Nc4 {[%emt 0:00:10]} a5 {[%emt 0:04:18]} 13. Rc1 {[%emt 0:05:29]} c5 {[%emt 0:01:17]} 14. Nfe5 {[%emt 0:03:22]} cxd4 {[%emt 0:26:27]} 15. Bxd4 {[%emt 0:05:32]} Nxe5 {[%emt 0:05:15]} 16. Bxe5 {[%emt 0:07:30]} Nd5 {[%emt 0:10:45]} 17. Bf3 $1 {[%emt 0:04:38]} Bf6 {[%emt 0:04:31]} 18. Qd4 $1 {[%emt 0:03:24] [#]} Ra6 $146 {[%emt 0:14:51]} ({Predecessor:} 18... Bxe5 19. Qxe5 Ra7 20. Rfd1 Qb8 21. Qxb8 Rxb8 22. Nd6 Ba8 23. Nb5 Rd7 24. Rc5 Kf8 {1-0 Postny,E (2563)-Rustemov,A (2525) Chess.com Rapid Wk14 Swiss 2022 (1)}) 19. Bxf6 {[%emt 0:06:31]} Qxf6 {[%emt 0:01:25]} 20. Qxf6 {[%emt 0:00:11]} gxf6 {[%emt 0:00:05]} 21. Rfd1 {[%emt 0:00:14]} Ba8 {[%emt 0:00:45]} 22. Kf1 {[%emt 0:06:35]} Rc8 {[%emt 0:09:27] [#]} (22... Kg7 $11 {remains equal.}) 23. Rd4 {[%emt 0:08:45]} (23. Nd6 $1 $16 Rxc1 24. Rxc1) 23... f5 {[%emt 0:01:01]} 24. Rcd1 {[%emt 0:01:21][%cal Rf3d5]} Kg7 {[%emt 0:01:01]} 25. R1d2 {[%emt 0:01:50][%cal Rf3d5]} Kf6 {[%emt 0:02:58]} 26. Be2 {[%emt 0:05:32]} Ra7 {[%emt 0:01:20]} 27. f3 {[%emt 0:01:08]} Nc3 {[%emt 0:01:02]} 28. Rd7 {[%emt 0:08:36] Against Bd5} Rxd7 {[%emt 0:00:48]} 29. Rxd7 {[%emt 0:00:05]} Bc6 {[%emt 0:00:35]} 30. Rd4 {[%emt 0:04:31]} Bd5 {[%emt 0:00:37]} 31. Nxa5 {[%emt 0:01:43][%mdl 64] Discovered Attack} Nxe2 {[%emt 0:00:25]} (31... Rc5 $1 $14) 32. Kxe2 $14 {[%emt 0:00:04][%mdl 4096] Endgame KRB-KRN} Rc2+ {[%emt 0:00:04] [#]} 33. Rd2 {[%emt 0:09:19]} (33. Kd3 $1 $16 {[%cal Rd3c2]} Rc5 34. Nc4) 33... Rc5 $11 {[%emt 0:00:40] The position is equal.} 34. Nc4 {[%emt 0:00:06]} Bxc4+ {[%emt 0:00:16]} 35. bxc4 {[%emt 0:00:03]} Rxc4 {[%emt 0:00:07] KR-KR} 36. Rb2 {[%emt 0:00:07]} b3 {[%emt 0:00:19]} 37. Rxb3 {[%emt 0:00:05] And now Ra3 would win.} Rxa4 {[%emt 0:00:05]} 38. f4 {[%emt 0:00:10]} Kg6 {[%emt 0:01:50]} 39. Kf3 {[%emt 0:00:15]} Rc4 {[%emt 0:00:25]} 40. Rb8 {[%emt 0:00:00]} Kg7 {[%emt 0:00:00]} 41. h3 {[%emt 0:01:29]} h5 {[%emt 0:06:13] Weighted Error Value: White=0.11 (very precise) /Black=0.13 (very precise)} 1/2-1/2

[Event "European Women-ch 2023"]
[Site "Petrovac"]
[Date "2023.03.19"]
[Round "2.12"]
[White "Zhapova, Yana"]
[Black "Beydullayeva, Govhar"]
[Result "0-1"]
[ECO "B80"]
[WhiteElo "2269"]
[BlackElo "2388"]
[Annotator "TA"]
[PlyCount "74"]
[EventDate "2023.03.15"]
[EventType "swiss"]
[EventCountry "MNE"]
[SourceTitle "playchess.com"]
[Source "ChessBase"]
[SourceQuality "1"]
[TimeControl "40/5400+30:1800+30"]

{[%evp 19,74,19,29,0,-16,0,0,-15,-6,-22,-20,-23,0,-26,-27,-125,-137,-150,-130,-155,-163,-227,-232,-285,-295,-504,-189,-225,-217,-206,-199,-202,-158,-207,-199,-210,-216,-405,-406,-432,-412,-416,-382,-386,-373,-363,-367,-499,-454,-487,-454,-833,-832,-824,-820,-797,-785]} 1. e4 {[%emt 0:00:03]} c5 {[%emt 0:00:04]} 2. Nf3 {[%emt 0:00:13]} d6 {[%emt 0:00:03]} 3. d4 {[%emt 0:00:18]} cxd4 {[%emt 0:00:04]} 4. Nxd4 {[%emt 0:00:11]} Nf6 {[%emt 0:00:03]} 5. Nc3 {[%emt 0:00:16]} a6 {[%emt 0:00:03]} 6. g3 {[%emt 0:00:13]} e6 {[%emt 0:00:19]} 7. Bg2 {[%emt 0:00:34]} Be7 {[%emt 0:00:04]} 8. O-O {[%emt 0:00:47]} O-O {[%emt 0:00:35]} 9. Be3 {[%emt 0:02:54]} Qc7 {[%emt 0:00:30]} 10. Qe2 {[%emt 0:02:33]} Nc6 {[%emt 0:01:47]} 11. Nb3 {[%emt 0:05:14] B80: Sicilian Scheveningen: 6 g3 and 6 Be3, including English Attack.} Ne5 {[%emt 0:07:55]} 12. Rad1 {[%emt 0:01:42] [#]} Nc4 $146 {[%emt 0:02:51]} ({Predecessor:} 12... b5 13. a3 Bb7 14. f4 {½-½ Sergeev,R (1869)-Morgunova,E (1698) Ivanovo Ovechkin Memorial 33rd 2011 (8)}) 13. Bc1 {[%emt 0:01:43] The position is equal.} Rb8 {[%emt 0:14:25]} 14. g4 {[%emt 0:08:43]} h6 {[%emt 0:11:54]} 15. f4 {[%emt 0:04:46]} Nh7 {[%emt 0:00:40]} 16. Rd3 {[%emt 0:07:17]} b5 {[%emt 0:02:39][%cal Bb7b5,Bb5b4][%mdl 32]} 17. Qe1 {[%emt 0:13:12] White is now going downhill.} (17. Nd4 $11 {remains equal.}) 17... b4 $1 $17 {[%emt 0:02:15]} 18. Ne2 {[%emt 0:00:54] [#]} e5 {[%emt 0:02:19] Prevents Nbd4.} 19. h3 {[%emt 0:01:31] [#]} a5 $1 {[%emt 0:01:08][%cal Ba6a5,Ba5a4][%mdl 32]} 20. Qg3 {[%emt 0:10:59]} (20. Na1 {was necessary.}) 20... Ba6 $19 {[%emt 0:06:39]} 21. Re1 {[%emt 0:06:36]} a4 {[%emt 0:04:02]} 22. Nd2 $2 {[%emt 0:00:35]} (22. Na1) 22... Nb6 $2 {[%emt 0:01:56]} (22... Nxb2 23. Re3 (23. Bxb2 $2 {loses.} Qxc2 24. Rd5 Qxb2 $19) 23... Qxc2 24. Bxb2 Qxb2) 23. Nf3 {[%emt 0:05:56]} Bxd3 {[%emt 0:06:37]} 24. cxd3 {[%emt 0:00:03]} Nd7 {[%emt 0:08:56][%cal Bb6d7,Bd7f6,Bf6e4,Be4d2][%mdl 32]} 25. d4 {[%emt 0:01:11]} Rbe8 {[%emt 0:11:48]} 26. Kh1 {[%emt 0:02:12]} (26. Qf2 $17 {was called for.}) 26... Bd8 {[%emt 0:01:23]} 27. Bd2 {[%emt 0:02:13]} Ndf6 {[%emt 0:02:02]} 28. Nc1 $2 {[%emt 0:07:16]} (28. Nxe5 dxe5 29. fxe5) 28... Qc2 {[%emt 0:07:02][%csl LRb2,LRe4]} 29. Re2 {[%emt 0:04:55]} Nxe4 {[%emt 0:00:34]} 30. Qe1 {[%emt 0:00:07]} Nxd2 {[%emt 0:00:27]} 31. Rxd2 {[%emt 0:00:07]} Qc4 {[%emt 0:02:54]} 32. dxe5 {[%emt 0:01:36]} dxe5 {[%emt 0:00:35]} ({Worse is} 32... Qxf4 33. Rd4 $11) 33. fxe5 {[%emt 0:00:35]} Ng5 {[%emt 0:00:39] ...Nxf3 would be deadly. Black is clearly winning.} 34. Ng1 {[%emt 0:02:21]} Bc7 {[%emt 0:00:58]} 35. Re2 {[%emt 0:00:15] [#]} (35. Qf1 $142 Qxf1 36. Bxf1) 35... Rxe5 $1 {[%emt 0:00:48][%mdl 576] Deflection} 36. Rxe5 {[%emt 0:02:06]} Bxe5 {[%emt 0:00:01]} 37. Qxe5 {[%emt 0:00:41]} Qxc1 {[%emt 0:00:00] Weighted Error Value: White=0.61/Black=0.22 (precise)} 0-1

[Event "European Women-ch 2023"]
[Site "Petrovac"]
[Date "2023.03.19"]
[Round "2.12"]
[White "Shuqja, Klean"]
[Black "Kejzar, Petra"]
[Result "1-0"]
[ECO "B20"]
[WhiteElo "1884"]
[BlackElo "2128"]
[Annotator "TA"]
[PlyCount "113"]
[EventDate "2023.03.15"]
[EventType "swiss"]
[EventCountry "MNE"]
[SourceTitle "playchess.com"]
[Source "ChessBase"]
[SourceQuality "1"]
[TimeControl "40/5400+30:1800+30"]

{[%evp 9,113,4,60,-31,-31,-51,-28,-22,-21,-19,-25,-25,-40,-22,-35,-30,44,43,56,58,74,67,187,201,215,240,250,259,195,198,205,129,275,273,277,284,362,353,420,210,411,211,364,198,250,234,245,184,257,253,273,250,273,221,251,251,237,212,459,455,450,449,416,275,545,237,582,576,894,873,894,808,661,524,532,140,147,147,120,111,111,104,4078,4022,4014,4110,4092,4085,4133,4134,4007,4064,4125,4133,2952,2439,29978,29979,29979,29978,29980,29981,29981,29982,29982,29982]} 1. e4 {[%emt 0:03:47]} c5 {[%emt 0:00:04]} 2. b3 {[%emt 0:00:02]} Nc6 {[%emt 0:01:05]} 3. Bb2 {[%emt 0:00:08]} e5 {[%emt 0:00:23]} 4. Bb5 {[%emt 0:02:30]} Bd6 {[%emt 0:04:38] [#]} 5. f4 $146 {[%emt 0:09:33]} ({Predecessor:} 5. Ne2 Bc7 6. O-O Nge7 7. d3 O-O 8. f4 d5 9. f5 f6 10. Ng3 dxe4 11. dxe4 Nd4 12. Bc4+ Kh8 13. c3 b5 14. Bd5 Ndc6 {½-½ Batista,E-Brandao,E (2090) Barrinha Calil Memorial-A 2009 (6)}) 5... Nge7 {[%emt 0:01:49]} (5... exf4 $2 6. Bxc6 (6. Bxg7 Be5 $16) 6... Nf6 7. Bb5 $18) (5... Nd4 $11 6. Na3 a6) 6. Qf3 {[%emt 0:15:59] B20: Sicilian: Unusual White 2nd moves.} (6. Qh5 $14) 6... Nd4 $15 {[%emt 0:07:05]} 7. Bxd4 {[%emt 0:03:06]} exd4 {[%emt 0:02:17]} 8. Ne2 {[%emt 0:04:00] Black has an edge.} O-O {[%emt 0:02:41]} 9. O-O {[%emt 0:04:47]} Bc7 {[%emt 0:03:14]} 10. Bc4 {[%emt 0:05:00]} Rb8 {[%emt 0:00:42]} 11. a4 {[%emt 0:01:04]} a6 {[%emt 0:00:11]} 12. Na3 {[%emt 0:01:54]} Ba5 {[%emt 0:01:17]} (12... b6 $11) 13. c3 $14 {[%emt 0:03:07]} dxc3 {[%emt 0:05:53]} 14. dxc3 {[%emt 0:01:57]} d6 {[%emt 0:02:13]} 15. Rad1 {[%emt 0:03:58] White is more active.} Qc7 {[%emt 0:00:21]} (15... Ng6 $14) 16. f5 $18 {[%emt 0:01:49]} b5 {[%emt 0:13:28]} 17. axb5 {[%emt 0:02:08]} d5 {[%emt 0:00:43]} 18. exd5 {[%emt 0:03:57]} ({But not} 18. Bxd5 Nxd5 19. Rxd5 (19. exd5 axb5 20. c4 Re8 $16) 19... f6) 18... Nxf5 {[%emt 0:01:08]} 19. bxa6 {[%emt 0:02:13]} Nd6 {[%emt 0:06:34] Inhibits Nb5.} 20. Qd3 {[%emt 0:07:21]} Bg4 {[%emt 0:03:38]} (20... Qa7 $16) 21. Nb5 {[%emt 0:04:50]} Nxb5 {[%emt 0:00:58]} 22. Bxb5 {[%emt 0:00:06]} Bxe2 {[%emt 0:02:20]} 23. Qxe2 {[%emt 0:00:27] Hoping for d6.} Bxc3 {[%emt 0:00:19] Black is weak on the light squares} 24. Kh1 {[%emt 0:03:56]} (24. d6 $142 Qb6 25. Bc4 Bd4+ 26. Kh1) 24... Rb6 $2 {[%emt 0:03:25]} (24... Qb6) 25. Bc4 {[%emt 0:02:57]} (25. d6 $142 Rxd6 26. Rxd6 Qxd6 27. Qf3) 25... Bf6 $2 {[%emt 0:05:30]} (25... Rd6 26. g3 f6) 26. Rd3 {[%emt 0:02:30]} (26. d6 $142 Rxd6 27. Rxd6 Qxd6 28. Qe4) 26... Qd6 {[%emt 0:03:23]} (26... Rd6 {was necessary.} 27. Rdf3 h6) 27. Re3 {[%emt 0:02:07] a7 is the strong threat.} Rbb8 {[%emt 0:03:26]} 28. Re1 {[%emt 0:01:36][%cal Oe3e8]} h6 {[%emt 0:01:15]} (28... Rbc8 $142 29. Re4 g6) 29. Qf3 {[%emt 0:01:08]} Ra8 {[%emt 0:03:07]} 30. Qg3 {[%emt 0:01:32]} Qd8 {[%emt 0:00:44]} 31. Qg4 {[%emt 0:01:28]} Bg5 {[%emt 0:02:43]} 32. R3e2 {[%emt 0:00:51]} Qd6 {[%emt 0:01:04]} 33. Qf5 {[%emt 0:00:51]} Qf6 $2 {[%emt 0:02:22]} (33... Bf6 {was worth a try.} 34. Re4 g6) 34. Qxf6 {[%emt 0:00:21]} Bxf6 {[%emt 0:00:01]} 35. g3 {[%emt 0:03:25]} Rfd8 {[%emt 0:00:07]} 36. Kg2 {[%emt 0:00:18] Black must now prevent Bb5.} Kf8 $2 {[%emt 0:00:19]} (36... Kh7 37. Rb1 Kg8) 37. Kf3 {[%emt 0:00:47]} (37. Bb5 $142 c4 38. Bc6) 37... g6 $2 {[%emt 0:00:48]} (37... Bc3 {is more resistant.} 38. Rc1 Bf6) 38. Bb5 {[%emt 0:01:13][%cal Oe2e8] Re8+! would be deadly.} Bd4 {[%emt 0:02:41] [#]} 39. Re8+ $1 {[%emt 0:00:44][%mdl 512]} Rxe8 {[%emt 0:01:05]} 40. Rxe8+ {[%emt 0:00:00]} Rxe8 {[%emt 0:00:00]} 41. Bxe8 {[%emt 0:00:07][%mdl 4096] Endgame KB-KB} c4 {[%emt 0:00:23] [#]} 42. Ba4 $2 {[%emt 0:00:57]} (42. bxc4 $1 $18 {and the rest is easy.} Kxe8 43. Ke4) 42... cxb3 {[%emt 0:00:27]} 43. Bxb3 {[%emt 0:00:02] Strongly threatening Ke4.} Ke7 {[%emt 0:11:09] [#]} 44. d6+ $1 {[%emt 0:01:01][%mdl 576] Deflection} Kxd6 {[%emt 0:00:02]} 45. Bxf7 {[%emt 0:00:02]} Ke5 $2 {[%emt 0:09:47][%mdl 8192]} (45... g5 $16) 46. Bxg6 {[%emt 0:02:32]} Ba7 {[%emt 0:00:51]} 47. Kg4 {[%emt 0:01:25]} Kf6 {[%emt 0:00:39]} 48. Kh5 {[%emt 0:02:35]} Kg7 {[%emt 0:00:27]} 49. Bd3 {[%emt 0:00:21]} Bb8 {[%emt 0:00:53]} 50. g4 {[%emt 0:00:55]} Ba7 {[%emt 0:00:34]} 51. h4 {[%emt 0:00:16][%cal Bh2h4,Bh4g5,Bg5g6][%mdl 32]} Be3 {[%emt 0:00:40]} 52. g5 {[%emt 0:00:38]} hxg5 {[%emt 0:00:50]} 53. hxg5 {[%emt 0:00:02] White mates.} Ba7 {[%emt 0:05:10]} 54. g6 {[%emt 0:00:29]} Bd4 {[%emt 0:00:19]} 55. Kg5 {[%emt 0:00:13]} Kf8 {[%emt 0:01:02]} 56. Kf5 {[%emt 0:00:12]} Ke7 {[%emt 0:00:29]} 57. Ke4 {[%emt 0:01:07] Weighted Error Value: White=0.57/Black=0.60} 1-0